fUST/lending_fUST_20240224
["ID","MTS","AMOUNT","RATE_DAILY","PERIOD"]
[315046031,1708771840317,-500.0,0.00019452,2]
[315046032,1708771840326,-500.0,0.00019452,2]
[315046033,1708771840336,-500.0,0.00019452,2]
[315046034,1708771840346,-1532.07,0.00019452,2]
[315046035,1708771840355,-718.38,0.00019452,2]
[315046036,1708771840365,-1407.26,0.00019452,2]
[315046037,1708771840374,-500.0,0.00019452,2]
[315046038,1708771840385,-500.0,0.00019452,2]
[315046039,1708771840394,-500.0,0.00019452,2]
[315046040,1708771840404,-500.0,0.00019452,2]
[315046041,1708771840413,-7224.28,0.00019452,2]
[315046042,1708771840423,-621.73,0.00019452,2]
[315046043,1708771840432,-500.0,0.00019452,2]
[315046044,1708771840442,-500.0,0.00019452,2]
[315046046,1708771840451,-6819.37,0.00019452,2]
[315046048,1708771840461,-500.0,0.00019452,2]
[315046049,1708771840470,-664.8,0.00019452,2]
[315046050,1708771840481,-500.0,0.00019452,2]
[315046051,1708771840490,-500.0,0.00019452,2]
[315046053,1708771840500,-870.97,0.00019452,2]
[315046054,1708771840509,-500.0,0.00019452,2]
[315046056,1708771840519,-782.43,0.00019452,2]
[315046058,1708771840528,-900.03,0.00019452,2]
[315046060,1708771840537,-1594.12311112,0.00019461,2]
[315046061,1708771840547,-1594.12311112,0.00019471,2]
[315046062,1708771840556,-205.88902431,0.00019472,2]
[315046063,1708771840566,-1367.27965896,0.00019479,2]
[315046064,1708771840576,-1367.27965896,0.00019493,2]
[315046065,1708771840587,-1367.27965896,0.00019495,2]
[315046066,1708771840596,-205.88902431,0.00019495,2]
[315046067,1708771840605,-205.88902431,0.00019496,2]
[315046068,1708771840615,-1594.12311112,0.00019497,2]
[315046069,1708771840625,-166.666666,0.00019627,2]
[315046070,1708771840634,-1202.58410135,0.000197,2]
[315046071,1708771840643,-1202.58410135,0.000197,2]
[315046072,1708771840653,-1202.58410135,0.000197,2]
[315046073,1708771840663,-155.31979024,0.000197,2]
[315046074,1708771840672,-155.31979024,0.000197,2]
[315046075,1708771840682,-155.31979024,0.000197,2]
[315046076,1708771840691,-1031.4565848,0.000197,2]
[315046077,1708771840701,-1031.4565848,0.000197,2]
[315046078,1708771840710,-1031.4565848,0.000197,2]
[315046079,1708771840719,-153.0,0.000197,2]
[315046080,1708771840729,-481.53,0.00019715,3]
[315046081,1708771840738,-887.63,0.00019722,2]
[315046082,1708771840748,-500.0,0.00019722,2]
[315046083,1708771840758,-785.23,0.00019722,2]
[315046084,1708771840767,-859.94,0.00019722,2]
[315046085,1708771840776,-500.0,0.00019722,2]
[315046086,1708771840786,-675.59,0.00019722,2]
[315046087,1708771840795,-500.0,0.00019722,2]
[315046088,1708771840805,-2883.26,0.00019722,2]
[315046089,1708771840815,-3315.19,0.00019722,2]
[315046090,1708771840825,-1174.56,0.00019722,2]
[315046091,1708771840836,-500.0,0.00019722,2]
[315046092,1708771840846,-1237.98,0.00019722,2]
[315046093,1708771840855,-1461.42,0.00019725,2]
[315046094,1708771840865,-850.96,0.00019725,2]
[315046095,1708771840874,-4408.63,0.00019725,2]
[315046096,1708771840883,-1576.12,0.00019725,2]
[315046097,1708771840892,-500.0,0.00019725,2]
[315046098,1708771840902,-869.51,0.00019725,2]
[315046099,1708771840912,-500.0,0.00019726,2]
[315046100,1708771840921,-500.0,0.00019726,2]
[315046101,1708771840931,-521.36039873,0.00019726,2]
[315046102,1708771840940,-1042.23,0.00019726,2]
[315046103,1708771840950,-500.0,0.00019726,2]
[315046104,1708771840959,-500.0,0.00019726,2]
[315046105,1708771840969,-500.0,0.00019726,2]
[315046106,1708771840978,-1532.07,0.00019726,2]
[315046107,1708771840988,-718.38,0.00019726,2]
[315046108,1708771840998,-1407.26,0.00019726,2]
[315046109,1708771841007,-500.0,0.00019726,2]
[315046110,1708771841018,-500.0,0.00019726,2]
[315046111,1708771841027,-500.0,0.00019726,2]
[315046112,1708771841037,-7224.28,0.00019726,2]
[315046113,1708771841046,-621.73,0.00019726,2]
[315046114,1708771841055,-500.0,0.00019726,2]
[315046115,1708771841064,-500.0,0.00019726,2]
[315046116,1708771841074,-6819.37,0.00019726,2]
[315046117,1708771841084,-500.0,0.00019726,2]
[315046118,1708771841095,-664.8,0.00019726,2]
[315046119,1708771841105,-500.0,0.00019726,2]
[315046120,1708771841114,-870.97,0.00019726,2]
[315046121,1708771841123,-782.43,0.00019726,2]
[315046122,1708771841133,-900.03,0.00019726,2]
[315046123,1708771841142,-203.9948389,0.000198,2]
[315046124,1708771841152,-154.1542552,0.000198,2]
[315046125,1708771841162,-306.6461375,0.000198,2]
[315046126,1708771841172,-154.9866991,0.000198,2]
[315046127,1708771841181,-43601.47853742,0.000199,2]
[315046128,1708771841191,-603.39670582,0.000199,3]
[315046129,1708771841200,-29080.95293185,0.000199,2]
[315046130,1708771841210,-887.63,0.00019996,2]
[315046131,1708771841219,-500.0,0.00019996,2]
[315046132,1708771841228,-785.23,0.00019996,2]
[315046133,1708771841237,-859.94,0.00019996,2]
[315046134,1708771841247,-494.14341698,0.00019996,2]
[315046135,1708771841256,-675.59,0.00019996,2]
[315046136,1708771841266,-500.0,0.00019996,2]
[315046137,1708771841275,-2883.26,0.00019996,2]
[315046138,1708771841284,-3315.19,0.00019996,2]
[315046139,1708771841294,-1174.56,0.00019996,2]
[315046140,1708771841305,-150.20157181,0.00019996,2]
[315046141,1708771841317,-1237.98,0.00019996,2]
[315046143,1708771841327,-1461.42,0.00019999,2]
[315046145,1708771841337,-850.96,0.00019999,2]
[315046147,1708771841348,-4408.63,0.00019999,2]
[315046148,1708771841357,-1576.12,0.00019999,2]
[315046149,1708771841366,-500.0,0.00019999,2]
[315046150,1708771841376,-869.51,0.00019999,2]
[315046151,1708771841386,-311.57688629,0.00019999,2]
[315046152,1708771841396,-180.4420147,0.00019999,2]
[315046154,1708771841405,-355.62044803,0.00019999,2]
[315046155,1708771841414,-600.0,0.00019999,2]
[315046158,1708771841424,-645.0,0.00019999,2]
[315046160,1708771841433,-1375401.32142225,0.0002,2]
[315046162,1708771841447,-5006.54700567,0.0002,2]
[315046163,1708771841463,-2043.05638032,0.0002,2]
[315046170,1708771842005,-268.22103033,0.0002,2]
[315046171,1708771842018,-974.09498087,0.0002,2]
[315046172,1708771842029,-1422.25112723,0.0002,2]
[315046173,1708771842040,-998.73606636,0.0002,2]
[315046201,1708771845551,-306.9194835,0.000198,2]
[315046202,1708771845560,-621.05516522,0.00019998,2]
[315046203,1708771845569,-8072.01571227,0.0002,2]
[315046299,1708771846634,-1339.64,0.00019448,2]
[315046300,1708771846643,-1339.64,0.00019722,2]
[315046301,1708771846653,-72136.7525085,0.0002,2]
[315046302,1708771846666,-16108.24948532,0.0002,2]
[315046303,1708771846680,-70275.55328413,0.0002,2]
[315046306,1708771846698,-1339.64,0.00019996,2]
[315046308,1708771846707,-117971.56161835,0.0002,2]
[315046324,1708772268686,250.0,0.00018108,2]
[315046326,1708772546901,830.923814,0.00017904,2]
[315046328,1708772611607,24900.0,0.0001777,2]
[315046332,1708772865989,2734.6,0.0002015,12]
[315046376,1708773038470,-1590.93037397,0.0001824,2]
[315046377,1708773038480,-4697.79543124,0.00018241,2]
[315046378,1708773038490,-1560.22940197,0.00018246,2]
[315046379,1708773038499,-340.2397206,0.00018253,2]
[315046380,1708773038509,-216.1578123,0.00018314,2]
[315046381,1708773038519,-625.94840783,0.00018998,2]
[315046382,1708773038529,-172.64584547,0.00019078,2]
[315046383,1708773038538,-203.25845201,0.00019078,2]
[315046384,1708773038548,-500.0,0.00019178,2]
[315046385,1708773038557,-500.0,0.00019178,2]
[315046386,1708773038567,-500.0,0.00019178,2]
[315046387,1708773038577,-502.33775792,0.00019178,2]
[315046388,1708773038586,-152.9,0.00019178,2]
[315046389,1708773038596,-248.53773678,0.00019178,2]
[315046390,1708773038606,-500.0,0.00019178,2]
[315046391,1708773038615,-525.45852184,0.00019178,2]
[315046392,1708773038624,-500.0,0.00019178,2]
[315046393,1708773038634,-1204.1,0.00019178,2]
[315046394,1708773038643,-500.0,0.00019178,2]
[315046395,1708773038653,-500.49581509,0.00019178,2]
[315046396,1708773038663,-501.63878304,0.00019178,2]
[315046397,1708773038675,-639.13850757,0.00019178,2]
[315046398,1708773038687,-500.0,0.00019178,2]
[315046399,1708773038697,-289.03746674,0.00019178,2]
[315046400,1708773038707,-944.51,0.00019178,2]
[315046401,1708773038717,-500.0,0.00019178,2]
[315046402,1708773038726,-500.0,0.00019178,2]
[315046403,1708773038735,-500.0,0.00019178,2]
[315046404,1708773038745,-500.0,0.00019178,2]
[315046405,1708773038756,-500.0,0.00019178,2]
[315046406,1708773038766,-500.0,0.00019178,2]
[315046407,1708773038775,-1653.18,0.00019178,2]
[315046408,1708773038785,-774.39,0.00019178,2]
[315046409,1708773038795,-500.0,0.00019178,2]
[315046410,1708773038805,-1513.71,0.00019178,2]
[315046411,1708773038814,-500.0,0.00019178,2]
[315046412,1708773038824,-500.0,0.00019178,2]
[315046413,1708773038833,-466.15790035,0.00019178,2]
[315046414,1708773038843,-500.0,0.00019178,2]
[315046415,1708773038852,-500.0,0.00019178,2]
[315046416,1708773038862,-501.08219983,0.00019178,2]
[315046417,1708773038871,-500.0,0.00019178,2]
[315046418,1708773038881,-500.0,0.00019178,2]
[315046419,1708773038891,-500.0,0.00019178,2]
[315046420,1708773038900,-989.19,0.00019178,2]
[315046421,1708773038910,-500.61188878,0.00019178,2]
[315046422,1708773038919,-500.0,0.00019178,2]
[315046423,1708773038929,-500.74753847,0.00019178,2]
[315046424,1708773038939,-1293.07,0.00019178,2]
[315046425,1708773038949,-500.0,0.00019178,2]
[315046426,1708773038958,-817.72,0.00019178,2]
[315046427,1708773038967,-881.07,0.00019178,2]
[315046428,1708773038976,-500.0,0.00019178,2]
[315046429,1708773038986,-500.0,0.00019178,2]
[315046430,1708773038995,-500.0,0.00019178,2]
[315046431,1708773039004,-500.0,0.00019178,2]
[315046432,1708773039013,-500.0,0.00019178,2]
[315046433,1708773039023,-500.0,0.00019178,2]
[315046434,1708773039033,-500.0,0.00019178,2]
[315046435,1708773039042,-909.96,0.00019178,2]
[315046436,1708773039052,-500.0,0.00019178,2]
[315046437,1708773039061,-501.33966473,0.00019178,2]
[315046438,1708773039070,-500.0,0.00019178,2]
[315046439,1708773039080,-671.26,0.00019178,2]
[315046440,1708773039089,-567.53385106,0.00019178,2]
[315046441,1708773039099,-501.06561376,0.00019178,2]
[315046442,1708773039108,-584.1010211,0.00019178,2]
[315046443,1708773039118,-941.68,0.00019178,2]
[315046444,1708773039127,-500.0,0.00019178,2]
[315046445,1708773039137,-551.53581837,0.00019178,2]
[315046446,1708773039147,-503.02160777,0.00019178,2]
[315046447,1708773039156,-501.11759681,0.00019178,2]
[315046448,1708773039165,-500.0,0.00019178,2]
[315046449,1708773039174,-501.73083956,0.00019178,2]
[315046450,1708773039185,-500.0,0.00019178,2]
[315046451,1708773039195,-500.0,0.00019178,2]
[315046452,1708773039204,-7794.51,0.00019178,2]
[315046453,1708773039213,-4853.81,0.00019178,2]
[315046454,1708773039224,-542.4,0.00019178,2]
[315046455,1708773039234,-8013.62,0.00019178,2]
[315046456,1708773039246,-1729.14,0.00019178,2]
[315046457,1708773039255,-500.0,0.00019178,2]
[315046458,1708773039266,-500.0,0.00019178,2]
[315046459,1708773039275,-500.0,0.00019178,2]
[315046460,1708773039285,-502.22848927,0.00019178,2]
[315046461,1708773039294,-500.0,0.00019178,2]
[315046462,1708773039303,-519.2,0.00019178,2]
[315046463,1708773039312,-744.56,0.00019178,2]
[315046464,1708773039322,-501.95237073,0.00019178,2]
[315046465,1708773039331,-502.22333209,0.00019178,2]
[315046466,1708773039340,-502.78381319,0.00019178,2]
[315046467,1708773039349,-500.0,0.00019178,2]
[315046468,1708773039358,-3132.79,0.00019178,2]
[315046469,1708773039367,-380.90353411,0.00019178,2]
[315046470,1708773039376,-500.0,0.00019178,2]
[315046471,1708773039386,-948.57,0.00019178,2]
[315046472,1708773039395,-1046.14,0.00019178,2]
[315046473,1708773039404,-3626.1,0.00019178,2]
[315046474,1708773039413,-754.89,0.00019178,2]
[315046475,1708773039423,-646.60151528,0.00019178,2]
[315046476,1708773039433,-504.15685521,0.00019178,2]
[315046477,1708773039443,-1283.47,0.00019178,2]
[315046478,1708773039454,-500.0,0.00019178,2]
[315046479,1708773039463,-500.0,0.00019178,2]
[315046480,1708773039473,-615.60668137,0.00019178,2]
[315046481,1708773039483,-500.0,0.00019178,2]
[315046482,1708773039492,-500.9669518,0.00019178,2]
[315046483,1708773039502,-166.666666,0.00019178,2]
[315046484,1708773039511,-172.64584547,0.00019261,2]
[315046485,1708773039521,-200.5294442,0.000193,2]
[315046486,1708773039530,-200.5294442,0.000193,2]
[315046487,1708773039539,-153.0,0.000193,2]
[315046488,1708773039548,-153.0,0.000193,2]
[315046489,1708773039557,-232.4771994,0.000193,2]
[315046490,1708773039567,-154.1405702,0.000193,2]
[315046491,1708773039576,-200.5294442,0.000193,2]
[315046492,1708773039587,-153.0,0.000193,2]
[315046493,1708773039596,-200.5294442,0.000193,2]
[315046494,1708773039606,-153.0,0.000193,2]
[315046495,1708773039615,-154.1542552,0.000193,2]
[315046496,1708773039624,-200.5294442,0.000193,2]
[315046497,1708773039634,-153.0,0.000193,2]
[315046498,1708773039645,-306.6461375,0.000193,2]
[315046499,1708773039654,-200.5294442,0.000193,2]
[315046500,1708773039673,-153.0,0.000193,2]
[315046501,1708773039685,-200.5294442,0.000193,2]
[315046502,1708773039695,-200.5294442,0.000193,2]
[315046503,1708773039704,-153.0,0.000193,2]
[315046504,1708773039715,-200.5294442,0.000193,2]
[315046505,1708773039725,-1509.59,0.0001932,2]
[315046506,1708773039735,-635.14,0.00019332,3]
[315046507,1708773039746,-500.0,0.00019341,2]
[315046508,1708773039756,-500.0,0.00019341,2]
[315046509,1708773039768,-500.0,0.00019341,2]
[315046510,1708773039778,-500.0,0.00019341,2]
[315046511,1708773039787,-500.0,0.00019341,2]
[315046512,1708773039797,-500.0,0.00019341,2]
[315046513,1708773039808,-629.66397595,0.00019341,2]
[315046514,1708773039817,-83084.33600377,0.00019342,2]
[315046515,1708773039827,-172.64584547,0.00019443,2]
[315046516,1708773039837,-500.0,0.00019448,2]
[315046517,1708773039853,-521.36039873,0.00019452,2]
[315046518,1708773039864,-499.09084534,0.00019452,2]
[315046519,1708773039874,-500.0,0.00019452,2]
[315046520,1708773039883,-500.0,0.00019452,2]
[315046521,1708773039894,-1204.1,0.00019452,2]
[315046522,1708773039904,-500.0,0.00019452,2]
[315046523,1708773040082,-500.0,0.00019452,2]
[315046524,1708773040091,-944.51,0.00019452,2]
[315046525,1708773040101,-500.0,0.00019452,2]
[315046526,1708773040111,-500.0,0.00019452,2]
[315046527,1708773040121,-500.0,0.00019452,2]
[315046528,1708773040130,-500.0,0.00019452,2]
[315046529,1708773040144,-1653.18,0.00019452,2]
[315046530,1708773040154,-774.39,0.00019452,2]
[315046531,1708773040163,-500.0,0.00019452,2]
[315046532,1708773040172,-1513.71,0.00019452,2]
[315046533,1708773040182,-500.0,0.00019452,2]
[315046534,1708773040191,-989.19,0.00019452,2]
[315046535,1708773040202,-1293.07,0.00019452,2]
[315046536,1708773040213,-502.27376554,0.00019452,2]
[315046537,1708773040224,-817.72,0.00019452,2]
[315046538,1708773040234,-881.07,0.00019452,2]
[315046539,1708773040243,-909.96,0.00019452,2]
[315046540,1708773040253,-165.62,0.00019452,2]
[315046541,1708773040262,-500.0,0.00019452,2]
[315046542,1708773040272,-671.26,0.00019452,2]
[315046543,1708773040281,-941.68,0.00019452,2]
[315046544,1708773040290,-500.0,0.00019452,2]
[315046545,1708773040300,-500.0,0.00019452,2]
[315046546,1708773040309,-500.0,0.00019452,2]
[315046547,1708773040320,-7794.51,0.00019452,2]
[315046548,1708773040329,-4853.81,0.00019452,2]
[315046549,1708773040339,-542.4,0.00019452,2]
[315046550,1708773040348,-8013.62,0.00019452,2]
[315046551,1708773040357,-1729.14,0.00019452,2]
[315046552,1708773040367,-500.0,0.00019452,2]
[315046553,1708773040376,-500.0,0.00019452,2]
[315046554,1708773040387,-500.0,0.00019452,2]
[315046555,1708773040396,-500.0,0.00019452,2]
[315046556,1708773040406,-519.2,0.00019452,2]
[315046557,1708773040415,-744.56,0.00019452,2]
[315046558,1708773040424,-500.0,0.00019452,2]
[315046559,1708773040433,-3132.79,0.00019452,2]
[315046560,1708773040442,-501.06672722,0.00019452,2]
[315046561,1708773040451,-948.57,0.00019452,2]
[315046562,1708773040461,-1046.14,0.00019452,2]
[315046563,1708773040470,-3626.1,0.00019452,2]
[315046564,1708773040479,-754.89,0.00019452,2]
[315046565,1708773040489,-1283.47,0.00019452,2]
[315046566,1708773040498,-500.0,0.00019452,2]
[315046567,1708773040508,-500.0,0.00019452,2]
[315046568,1708773040517,-153.0,0.00019452,2]
[315046569,1708773040526,-153.0,0.00019452,2]
[315046570,1708773040537,-153.0,0.00019452,2]
[315046571,1708773040546,-153.0,0.00019452,2]
[315046572,1708773040556,-153.0,0.00019452,2]
[315046573,1708773040566,-205.88902431,0.00019466,2]
[315046574,1708773040576,-2961.40277007,0.00019474,2]
[315046575,1708773040585,-2961.40277007,0.00019474,2]
[315046576,1708773040594,-3204.45060806,0.00019484,2]
[315046577,1708773040605,-3204.45060806,0.00019485,2]
[315046578,1708773040615,-205.88902431,0.00019487,2]
[315046579,1708773040626,-2961.40277007,0.00019489,2]
[315046580,1708773040637,-205.88902431,0.00019495,2]
[315046581,1708773040646,-3204.45060806,0.00019496,2]
[315046582,1708773040655,-1509.59,0.00019594,2]
[315046583,1708773040663,-172.64584547,0.00019626,2]
[315046584,1708773040675,-166.666666,0.00019627,2]
[315046585,1708773040686,-2234.04068617,0.000197,2]
[315046586,1708773040697,-2234.04068617,0.000197,2]
[315046587,1708773040708,-2234.04068617,0.000197,2]
[315046589,1708773040717,-155.31979024,0.000197,2]
[315046591,1708773040726,-155.31979024,0.000197,2]
[315046592,1708773040736,-155.31979024,0.000197,2]
[315046593,1708773040746,-2417.39256395,0.000197,2]
[315046594,1708773040758,-2417.39256395,0.000197,2]
[315046595,1708773040768,-2417.39256395,0.000197,2]
[315046596,1708773040779,-500.0,0.00019726,2]
[315046597,1708773040788,-1204.1,0.00019726,2]
[315046598,1708773040798,-500.0,0.00019726,2]
[315046599,1708773040808,-944.51,0.00019726,2]
[315046600,1708773040819,-500.0,0.00019726,2]
[315046601,1708773040829,-500.0,0.00019726,2]
[315046602,1708773040839,-500.0,0.00019726,2]
[315046603,1708773040849,-1653.18,0.00019726,2]
[315046604,1708773040859,-774.39,0.00019726,2]
[315046605,1708773040869,-500.0,0.00019726,2]
[315046606,1708773040879,-1513.71,0.00019726,2]
[315046607,1708773040889,-500.0,0.00019726,2]
[315046608,1708773040898,-989.19,0.00019726,2]
[315046609,1708773040909,-1293.07,0.00019726,2]
[315046610,1708773040918,-817.72,0.00019726,2]
[315046611,1708773040928,-881.07,0.00019726,2]
[315046613,1708773040937,-909.96,0.00019726,2]
[315046614,1708773040948,-500.0,0.00019726,2]
[315046615,1708773040958,-671.26,0.00019726,2]
[315046616,1708773040969,-941.68,0.00019726,2]
[315046617,1708773040979,-500.0,0.00019726,2]
[315046618,1708773040988,-500.0,0.00019726,2]
[315046619,1708773040997,-500.0,0.00019726,2]
[315046620,1708773041006,-7794.51,0.00019726,2]
[315046621,1708773041015,-4853.81,0.00019726,2]
[315046622,1708773041024,-542.4,0.00019726,2]
[315046623,1708773041033,-8013.62,0.00019726,2]
[315046624,1708773041042,-1729.14,0.00019726,2]
[315046625,1708773041051,-500.0,0.00019726,2]
[315046626,1708773041060,-500.0,0.00019726,2]
[315046627,1708773041069,-519.2,0.00019726,2]
[315046628,1708773041078,-744.56,0.00019726,2]
[315046629,1708773041087,-500.0,0.00019726,2]
[315046630,1708773041096,-3132.79,0.00019726,2]
[315046631,1708773041106,-948.57,0.00019726,2]
[315046632,1708773041115,-1046.14,0.00019726,2]
[315046633,1708773041124,-3626.1,0.00019726,2]
[315046634,1708773041133,-754.89,0.00019726,2]
[315046635,1708773041143,-1283.47,0.00019726,2]
[315046636,1708773041152,-500.0,0.00019726,2]
[315046637,1708773041160,-500.0,0.00019726,2]
[315046638,1708773041170,-153.0,0.00019781,2]
[315046639,1708773041179,-1302.15831049,0.000198,2]
[315046640,1708773041188,-1509.59,0.00019868,2]
[315046641,1708773041197,-603.39670582,0.000199,3]
[315046642,1708773041206,-29080.95293185,0.000199,2]
[315046643,1708773041216,-257.0637228,0.00019999,2]
[315046644,1708773041225,-1389.2207575,0.00019999,2]
[315046645,1708773041234,-234.13260441,0.00019999,2]
[315046646,1708773041243,-286.97306589,0.00019999,2]
[315046647,1708773041252,-340.10983756,0.00019999,2]
[315046648,1708773041261,-175.0,0.0002,2]
[315046649,1708773041270,-200.5294442,0.0002,2]
[315046650,1708773041280,-200.5294442,0.0002,2]
[315046651,1708773041289,-200.5294442,0.0002,2]
[315046652,1708773041298,-200.5294442,0.0002,2]
[315046653,1708773041307,-200.5294442,0.0002,2]
[315046654,1708773041316,-200.5294442,0.0002,2]
[315046655,1708773041325,-200.5294442,0.0002,2]
[315046656,1708773041334,-200.5294442,0.0002,2]
[315046657,1708773041343,-200.5294442,0.0002,2]
[315046658,1708773041352,-200.5294442,0.0002,2]
[315046659,1708773041361,-154.9866991,0.0002,2]
[315046660,1708773041370,-200.5294442,0.0002,2]
[315046661,1708773041379,-200.5294442,0.0002,2]
[315046662,1708773041389,-200.5294442,0.0002,2]
[315046663,1708773041397,-200.5294442,0.0002,2]
[315046664,1708773041407,-200.5294442,0.0002,2]
[315046665,1708773041418,-200.5294442,0.0002,2]
[315046666,1708773041427,-200.5294442,0.0002,2]
[315046667,1708773041436,-200.5294442,0.0002,2]
[315046668,1708773041446,-169.69108004,0.0002,2]
[315046669,1708773041456,-538.31,0.0002,2]
[315046670,1708773041465,-1204.1,0.0002,2]
[315046671,1708773041475,-151.52272765,0.0002,2]
[315046672,1708773041484,-500.0,0.0002,2]
[315046673,1708773041493,-552.0,0.0002,2]
[315046674,1708773041503,-944.51,0.0002,2]
[315046675,1708773041512,-500.0,0.0002,2]
[315046676,1708773041521,-500.0,0.0002,2]
[315046677,1708773041531,-1603136.18813201,0.0002,2]
[315046678,1708773041546,-43601.15611078,0.0002,2]
[315046691,1708773043540,-4697.79543124,0.00018239,2]
[315046692,1708773043550,-272.70412276,0.00019465,2]
[315046694,1708773043559,-272.70412276,0.00019492,2]
[315046695,1708773043568,-272.70412276,0.00019495,2]
[315046696,1708773043577,-18932.15578336,0.00019716,3]
[315046698,1708773043589,-2494.57674135,0.00019716,3]
[315046700,1708773043600,-1798.57373696,0.00019716,3]
[315046702,1708773043611,-7667.99999847,0.00019716,3]
[315046703,1708773043624,-2126.41,0.00019716,3]
[315046722,1708773046590,-200.5294442,0.000193,2]
[315046723,1708773046599,-205.72416276,0.000197,2]
[315046724,1708773046609,-205.72416276,0.000197,2]
[315046725,1708773046618,-205.72416276,0.000197,2]
[315046726,1708773046628,-30180.89373986,0.00019716,3]
[315046727,1708773046637,-11433.77147708,0.0002,2]
[315046730,1708773253641,250.0,0.00018041,2]
[315046748,1708773403968,2523.9528131,0.00018026,2]
[315046773,1708773558975,585.159979,0.00017994,2]
[315046783,1708773589166,24900.0,0.00018031,2]
[315046843,1708774057125,24900.0,0.00018025,2]
[315046863,1708774158519,292.579989,0.00018025,2]
[315046915,1708774234831,-186.48390191,0.00018786,2]
[315046916,1708774234841,-806.54634142,0.00018882,2]
[315046917,1708774234893,-2491.75865993,0.00018882,2]
[315046918,1708774234903,-4697.79543124,0.00018883,2]
[315046919,1708774234914,-336.12682307,0.00018893,2]
[315046920,1708774234923,-258.0,0.00018894,2]
[315046921,1708774234932,-9465.0,0.00018895,2]
[315046922,1708774234942,-177.99851423,0.00019078,2]
[315046923,1708774234951,-2053.03138946,0.00019078,2]
[315046924,1708774234961,-501.94737646,0.00019178,2]
[315046925,1708774234970,-500.0,0.00019178,2]
[315046926,1708774234980,-500.0,0.00019178,2]
[315046927,1708774234989,-500.0,0.00019178,2]
[315046928,1708774234999,-295.68628284,0.00019178,2]
[315046929,1708774235008,-1213.17,0.00019178,2]
[315046930,1708774235018,-500.0,0.00019178,2]
[315046931,1708774235027,-905.15,0.00019178,2]
[315046932,1708774235037,-500.0,0.00019178,2]
[315046933,1708774235047,-500.0,0.00019178,2]
[315046934,1708774235057,-519.8,0.00019178,2]
[315046935,1708774235068,-500.0,0.00019178,2]
[315046936,1708774235078,-1584.3,0.00019178,2]
[315046937,1708774235088,-742.12,0.00019178,2]
[315046938,1708774235098,-1450.64,0.00019178,2]
[315046939,1708774235107,-500.0,0.00019178,2]
[315046940,1708774235117,-500.0,0.00019178,2]
[315046941,1708774235127,-500.0,0.00019178,2]
[315046942,1708774235136,-500.0,0.00019178,2]
[315046943,1708774235146,-1509.59,0.00019178,2]
[315046944,1708774235159,-1310.83,0.00019178,2]
[315046945,1708774235169,-500.0,0.00019178,2]
[315046946,1708774235178,-502.27376554,0.00019178,2]
[315046947,1708774235188,-783.64,0.00019178,2]
[315046948,1708774235198,-500.0,0.00019178,2]
[315046949,1708774235208,-7469.74,0.00019178,2]
[315046950,1708774235228,-702.52,0.00019178,2]
[315046951,1708774235240,-500.0,0.00019178,2]
[315046952,1708774235250,-573.59624202,0.00019178,2]
[315046953,1708774235260,-997.71,0.00019178,2]
[315046954,1708774235269,-949.85,0.00019178,2]
[315046955,1708774235279,-501.11759681,0.00019178,2]
[315046956,1708774235289,-500.0,0.00019178,2]